bitfinex-derivatives/quotes_BTCF0:USTF0_20250406
["timestamp","ask_amount","ask_price","bid_price","bid_amount"]
[1743903944435,0.06492,83525.0,83524.0,0.39972]
[1743903948032,0.06492,83525.0,83524.0,0.42982]
[1743903948841,0.06492,83525.0,83524.0,0.42882]
[1743903949044,0.06492,83525.0,83524.0,0.42982]
[1743903951741,0.06492,83525.0,83524.0,0.42882]
[1743903951941,0.06492,83525.0,83524.0,0.42982]
[1743903954942,0.06492,83525.0,83524.0,0.43082]
[1743903955742,0.06492,83525.0,83524.0,0.42982]
[1743903958249,0.06492,83525.0,83524.0,0.42882]
[1743903958447,0.06492,83525.0,83524.0,0.42982]
[1743903962050,0.06492,83525.0,83524.0,0.42882]
[1743903962252,0.06492,83525.0,83524.0,0.42982]
[1743903962853,0.03212,83525.0,83524.0,0.42882]
[1743903963242,0.03212,83525.0,83524.0,0.42982]
[1743903964345,0.03212,83525.0,83524.0,0.42882]
[1743903964646,0.03212,83525.0,83524.0,0.42982]
[1743903970560,0.03212,83525.0,83524.0,0.62862]
[1743903979259,0.0001796,83533.0,83527.0,0.0419185]
[1743903979461,0.0001796,83533.0,83532.0,0.444632]
[1743903979760,0.0001796,83533.0,83532.0,0.674632]
[1743903980261,0.0001796,83533.0,83532.0,0.675232]
[1743903980647,0.0011796,83533.0,83532.0,0.675232]
[1743903980849,0.10770001,83541.0,83540.0,0.083824]
[1743903981057,0.10838001,83541.0,83540.0,0.675224]
[1743903981963,0.10770001,83541.0,83540.0,0.675224]
[1743903982660,0.10834001,83541.0,83540.0,0.675224]
[1743903982862,0.11234001,83541.0,83540.0,0.675224]
[1743903983362,0.11534001,83541.0,83540.0,0.675224]
[1743903983766,0.00764,83541.0,83540.0,0.675224]
[1743903984066,0.007,83541.0,83540.0,0.675224]
[1743903985056,0.007,83541.0,83540.0,0.445224]
[1743903985455,0.007,83541.0,83540.0,0.725224]
[1743903985665,0.007,83541.0,83540.0,0.445224]
[1743903988369,0.141983,83541.0,83540.0,0.084424]
[1743903988570,0.142703,83541.0,83540.0,0.084424]
[1743903988871,0.142703,83541.0,83540.0,0.083824]
[1743903989769,0.238103,83541.0,83540.0,0.083824]
[1743903990467,0.0419175,83530.0,83523.0,0.33802315]
[1743903990667,0.0838541,83510.0,83509.0,0.16786012]
[1743903990867,0.4967341,83510.0,83509.0,0.16846012]
[1743903991064,0.5955741,83510.0,83509.0,0.16846012]
[1743903991376,0.6467341,83510.0,83509.0,0.16846012]
[1743903991758,0.5965741,83510.0,83509.0,0.16846012]
[1743903991964,0.6477341,83510.0,83509.0,0.16846012]
[1743903992663,0.6487341,83510.0,83509.0,0.16846012]
[1743903993263,0.4987341,83510.0,83509.0,0.16786012]
[1743903993465,0.4987341,83510.0,83509.0,0.16846012]
[1743903995478,0.51084295,83510.0,83509.0,0.16846012]
[1743903996177,0.51084295,83510.0,83509.0,0.0006]
[1743903996475,0.0838611,83503.0,83502.0,0.0838616]
[1743903996671,0.0838611,83503.0,83502.0,0.3438616]
[1743903996875,0.0838611,83503.0,83502.0,0.0838616]
[1743903997078,0.0838611,83503.0,83502.0,0.1142616]
[1743903997376,0.1350211,83503.0,83502.0,0.1142616]
[1743903997878,0.05116,83503.0,83499.0,0.00059881]
[1743903998075,0.0838641,83500.0,83499.0,0.00059881]
[1743903999674,0.0847041,83500.0,83499.0,0.00059881]
[1743904000174,0.0847041,83500.0,83499.0,0.00243881]
[1743904003080,0.0847041,83500.0,83499.0,0.07556103]
[1743904004281,0.0847041,83500.0,83499.0,0.04366103]
[1743904004479,0.0419368,83491.0,83484.0,0.4446792]
[1743904004779,0.0838792,83485.0,83484.0,0.5477788]
[1743904004980,0.08495921,83485.0,83484.0,0.5476988]
[1743904005665,0.08495921,83485.0,83484.0,0.5486988]
[1743904006073,0.08495921,83485.0,83484.0,0.5476988]
[1743904006269,0.08595921,83485.0,83484.0,0.5486988]
[1743904006471,0.08695921,83485.0,83484.0,0.5486988]
[1743904007074,0.13811921,83485.0,83484.0,0.5486988]
[1743904007580,0.13811921,83485.0,83484.0,0.5579037]
[1743904008682,0.13811921,83485.0,83484.0,0.1971037]
[1743904013483,0.13811921,83485.0,83484.0,0.1371037]
[1743904014384,0.13711921,83485.0,83484.0,0.1371037]
[1743904014986,0.13611921,83485.0,83484.0,0.1361037]
[1743904017285,0.13611921,83485.0,83484.0,0.0102849]
[1743904017586,0.13611921,83485.0,83484.0,0.0941651]
[1743904017784,0.13611921,83485.0,83484.0,0.1556651]
[1743904018779,0.13611921,83485.0,83484.0,0.4256651]
[1743904019079,0.13611921,83485.0,83484.0,0.1556651]
[1743904019389,0.13611921,83485.0,83484.0,0.3956651]
[1743904019582,0.08495921,83485.0,83484.0,0.3956651]
[1743904019783,0.13611921,83485.0,83484.0,0.4256651]
[1743904020084,0.08495921,83485.0,83484.0,0.1556651]
[1743904020388,0.13611921,83485.0,83484.0,0.1556651]
[1743904022174,0.13611921,83485.0,83484.0,0.4156651]
[1743904022374,0.13611921,83485.0,83484.0,0.1556651]
[1743904022989,0.13611921,83485.0,83484.0,0.0717849]
[1743904023191,0.0838812,83483.0,83482.0,0.0329]
[1743904023488,0.4446812,83483.0,83482.0,0.12576871]
[1743904023878,0.4461612,83483.0,83482.0,0.12576871]
[1743904024885,0.4461612,83483.0,83482.0,0.04188651]
[1743904025085,0.4461612,83483.0,83482.0,0.12576871]
[1743904026880,0.4461612,83483.0,83482.0,0.19196871]
[1743904028493,0.4461612,83483.0,83482.0,0.10808651]
[1743904028883,0.4764612,83483.0,83482.0,0.10808651]
[1743904032884,0.49446121,83483.0,83482.0,0.10808651]
[1743904034279,0.49446121,83483.0,83482.0,0.19196871]
[1743904035794,0.49446121,83483.0,83482.0,0.10808651]
[1743904037589,0.13366121,83483.0,83482.0,0.10808651]
[1743904037787,0.85526121,83483.0,83482.0,0.10808651]
[1743904039094,0.82496121,83483.0,83482.0,0.19196871]
[1743904040287,0.82496121,83483.0,83482.0,0.44196871]
[1743904040586,0.8069612,83483.0,83482.0,0.19196871]
[1743904040795,0.8069612,83483.0,83482.0,0.45196871]
[1743904040991,0.8069612,83483.0,83482.0,0.47196871]
[1743904041196,0.8069612,83483.0,83482.0,0.45196871]
[1743904041397,0.8069612,83483.0,83482.0,0.19196871]
[1743904041590,0.8069612,83483.0,83482.0,0.42196871]
[1743904041898,0.8581212,83483.0,83482.0,0.44196871]
[1743904042191,0.8581212,83483.0,83482.0,0.19196871]
[1743904043089,0.8581212,83483.0,83482.0,0.10808651]
[1743904043992,0.8892212,83483.0,83482.0,0.10808651]
[1743904048905,0.80534,83483.0,83451.0,0.4174]
[1743904049201,0.4446993,83465.0,83464.0,0.0839803]
[1743904049404,0.0419554,83454.0,83452.0,0.0419553]
[1743904049704,0.0839065,83459.0,83458.0,0.0839863]
[1743904049892,0.0839065,83459.0,83458.0,0.09302678]
[1743904050093,0.09563271,83459.0,83458.0,0.09302678]
[1743904050505,0.09563271,83459.0,83458.0,0.09294678]
[1743904050803,0.09563271,83459.0,83458.0,0.34294678]
[1743904051390,0.09563271,83459.0,83458.0,0.09294678]
[1743904051591,0.09563271,83459.0,83458.0,0.35294678]
[1743904051796,0.14679271,83459.0,83458.0,0.00904048]
[1743904051998,0.0839084,83456.0,83455.0,8e-05]
[1743904052295,0.08530841,83456.0,83455.0,0.00884721]
[1743904052495,0.08530841,83456.0,83455.0,0.03976721]
[1743904057408,0.0839144,83450.0,83449.0,8e-05]
[1743904057707,0.0839204,83444.0,83443.0,0.00675275]
[1743904057914,0.13648041,83444.0,83443.0,0.03895275]
[1743904060114,0.08532041,83444.0,83443.0,0.03895275]
[1743904060416,0.13648041,83444.0,83443.0,0.03895275]
[1743904060619,0.08532041,83444.0,83443.0,0.13198951]
[1743904061113,0.13648041,83444.0,83443.0,0.40198951]
[1743904061313,0.13648041,83444.0,83443.0,0.13198951]
[1743904061715,0.13648041,83444.0,83443.0,0.39198951]
[1743904061914,0.13648041,83444.0,83443.0,0.13198951]
[1743904062306,0.13648041,83444.0,83443.0,0.37198951]
[1743904062510,0.13648041,83444.0,83443.0,0.13198951]
[1743904063418,0.13648041,83444.0,83443.0,0.39198951]
[1743904064013,0.13648041,83444.0,83443.0,0.13198951]
[1743904064220,0.08532041,83444.0,83443.0,0.13198951]
[1743904064719,0.13652041,83444.0,83443.0,0.13198951]
[1743904067620,0.13652041,83444.0,83443.0,0.39198951]
[1743904067915,0.08532041,83444.0,83443.0,0.24198951]
[1743904068120,0.08532041,83444.0,83443.0,0.38198951]
[1743904068121,0.13652041,83444.0,83443.0,0.38198951]
[1743904068819,0.13652041,83444.0,83443.0,0.13198951]
[1743904069027,0.13652041,83444.0,83443.0,0.24198951]
[1743904069404,0.08532041,83444.0,83443.0,0.24198951]
[1743904069610,0.13652041,83444.0,83443.0,0.24198951]
[1743904070414,0.13652041,83444.0,83443.0,0.13198951]
[1743904070610,0.13652041,83444.0,83443.0,0.37198951]
[1743904071119,0.13652041,83444.0,83443.0,0.38198951]
[1743904071621,0.13652041,83444.0,83443.0,0.13198951]
[1743904071923,0.08532041,83444.0,83443.0,0.40198951]
[1743904072118,0.13652041,83444.0,83443.0,0.40198951]
[1743904072519,0.13652041,83444.0,83443.0,0.41198951]
[1743904073926,0.13652041,83444.0,83443.0,0.13198951]
[1743904074121,0.13652041,83444.0,83443.0,0.38198951]
[1743904074822,0.13652041,83444.0,83443.0,0.39198951]
[1743904075126,0.13652041,83444.0,83443.0,0.13198951]
[1743904075822,0.13652041,83444.0,83443.0,0.41198951]
[1743904078122,0.00140001,83444.0,83443.0,0.41198951]
[1743904078321,0.08532041,83444.0,83443.0,0.41198951]
[1743904078516,0.00140001,83444.0,83443.0,0.41198951]
[1743904081228,0.08532041,83444.0,83443.0,0.41198951]
[1743904081428,0.08532041,83444.0,83443.0,0.13198951]
[1743904081630,0.08532041,83444.0,83443.0,0.41198951]
[1743904083130,0.08532041,83444.0,83443.0,0.13198951]
[1743904083530,0.11532041,83444.0,83443.0,0.13198951]
[1743904084835,0.11532041,83444.0,83443.0,0.38198951]
[1743904085031,0.11532041,83444.0,83443.0,0.13198951]
[1743904086730,0.11532041,83444.0,83443.0,0.42198951]
[1743904087038,0.11532041,83444.0,83443.0,0.39198951]
[1743904087536,0.11532041,83444.0,83443.0,0.13198951]
[1743904087736,0.11532041,83444.0,83443.0,0.40198951]
[1743904087940,0.11532041,83444.0,83443.0,0.41198951]
[1743904088234,0.11532041,83444.0,83443.0,0.13198951]
[1743904089236,0.11532041,83444.0,83443.0,0.41198951]
[1743904089440,0.11532041,83444.0,83443.0,0.13198951]
[1743904090137,0.14652041,83444.0,83443.0,0.13198951]
[1743904090337,0.11532041,83444.0,83443.0,0.13198951]
[1743904092040,0.16652041,83444.0,83443.0,0.13198951]
[1743904092241,0.16652041,83444.0,83443.0,0.39198951]
[1743904092632,0.16652041,83444.0,83443.0,0.13198951]
[1743904094837,0.52732041,83444.0,83443.0,0.13198951]
[1743904097940,0.52732041,83444.0,83443.0,0.38198951]
[1743904098131,0.52732041,83444.0,83443.0,0.13198951]
[1743904099243,0.55842041,83444.0,83443.0,0.13198951]
[1743904099438,0.66583885,83444.0,83443.0,0.13198951]
[1743904099737,0.66583885,83444.0,83443.0,0.04806811]
[1743904100842,0.63473885,83444.0,83443.0,0.04806811]
[1743904101043,0.63473885,83444.0,83443.0,0.13198951]
[1743904101247,0.58353885,83444.0,83443.0,0.13198951]
[1743904101543,0.63473885,83444.0,83443.0,0.13198951]
[1743904102444,0.66613885,83444.0,83443.0,0.13198951]
[1743904102638,0.66613885,83444.0,83443.0,0.04806811]
[1743904103236,0.66613885,83444.0,83443.0,0.13198951]
[1743904105045,0.30533885,83444.0,83443.0,0.13198951]
[1743904105344,0.66613885,83444.0,83443.0,0.13198951]
[1743904106035,0.55872041,83444.0,83443.0,0.13198951]
[1743904106235,0.55872041,83444.0,83443.0,0.41198951]
[1743904106434,0.55872041,83444.0,83443.0,0.13198951]
[1743904107545,0.55872041,83444.0,83443.0,0.41198951]
[1743904107747,0.55872041,83444.0,83443.0,0.13198951]
[1743904108444,0.55872041,83444.0,83443.0,0.09303676]
[1743904108639,0.55872041,83444.0,83443.0,0.12513676]
[1743904108838,0.55872041,83444.0,83443.0,0.15523676]
[1743904112047,0.55872041,83444.0,83443.0,0.38523676]
[1743904112638,0.55872041,83444.0,83443.0,0.35303676]
[1743904113145,0.55872041,83444.0,83443.0,0.38343676]
[1743904113343,0.55872041,83444.0,83443.0,0.15343676]
[1743904114047,0.55872041,83444.0,83443.0,0.41343676]
[1743904115149,0.55872041,83444.0,83443.0,0.15343676]
[1743904115649,0.52732041,83444.0,83443.0,0.15343676]
[1743904115849,0.52732041,83444.0,83443.0,0.38343676]
[1743904116546,0.52732041,83444.0,83443.0,0.15343676]
[1743904116748,0.52732041,83444.0,83443.0,0.41343676]
[1743904116949,0.47612041,83444.0,83443.0,0.15343676]
[1743904117149,0.52732041,83444.0,83443.0,0.15343676]
[1743904119056,0.16652041,83444.0,83443.0,0.39343676]
[1743904119350,0.52732041,83444.0,83443.0,0.15343676]
[1743904120055,0.52732041,83444.0,83443.0,0.06951536]
[1743904120643,0.55922041,83444.0,83443.0,0.15343676]
[1743904124152,0.52732041,83444.0,83443.0,0.15343676]
[1743904124351,0.52732041,83444.0,83443.0,0.06951536]
[1743904124647,0.55922041,83444.0,83443.0,0.06951536]
[1743904125656,0.52732041,83444.0,83443.0,0.06951536]
[1743904126052,0.52732041,83444.0,83443.0,0.00911536]
[1743904126352,0.0839224,83442.0,83441.0,8e-05]
[1743904126652,0.0853624,83442.0,83441.0,0.03048]
[1743904126957,0.1167624,83442.0,83441.0,0.06258]
[1743904128752,0.1167624,83442.0,83441.0,0.07143744]
[1743904130656,0.1167624,83442.0,83441.0,0.15536084]
[1743904132653,0.1167624,83442.0,83441.0,0.07143744]
[1743904135257,0.1167624,83442.0,83441.0,0.15536084]
[1743904139862,0.1167624,83442.0,83441.0,0.07143744]
[1743904140363,0.1167624,83442.0,83441.0,0.07135744]
[1743904150169,0.1167624,83442.0,83441.0,0.15528084]
[1743904150561,0.8383624,83442.0,83441.0,0.15528084]
[1743904153064,0.1167624,83442.0,83441.0,0.15528084]
[1743904153369,0.8383624,83442.0,83441.0,0.15528084]
[1743904158975,0.8383624,83442.0,83441.0,0.07135744]
[1743904160274,0.8383624,83442.0,83441.0,0.15528084]
[1743904160568,0.8383624,83442.0,83441.0,0.42528084]
[1743904160775,0.8581624,83442.0,83441.0,0.42528084]
[1743904160973,0.8901624,83442.0,83441.0,0.42528084]
[1743904161359,0.8901624,83442.0,83441.0,0.40528084]
[1743904162171,1.03373274,83442.0,83441.0,0.40528084]
[1743904162475,1.03373274,83442.0,83441.0,0.15528084]
[1743904163173,0.98253274,83442.0,83441.0,0.15528084]
[1743904163371,1.03373274,83442.0,83441.0,0.43528084]
[1743904163564,1.03373274,83442.0,83441.0,0.39528084]
[1743904163764,1.03373274,83442.0,83441.0,0.15528084]
[1743904164176,0.31213274,83442.0,83441.0,0.15528084]
[1743904164480,1.03373274,83442.0,83441.0,0.15528084]
[1743904164773,1.03373274,83442.0,83441.0,0.39528084]
[1743904165165,1.03373274,83442.0,83441.0,0.43528084]
[1743904168671,1.03373274,83442.0,83441.0,0.15528084]
[1743904168874,1.03373274,83442.0,83441.0,0.40528084]
[1743904169172,1.03373274,83442.0,83441.0,0.15528084]
[1743904169378,1.00173274,83442.0,83441.0,0.15528084]
[1743904170172,1.00173274,83442.0,83441.0,0.24528084]
[1743904173070,1.03343274,83442.0,83441.0,0.24528084]
[1743904173381,1.03339274,83442.0,83441.0,0.15528084]
[1743904173578,1.03339274,83442.0,83441.0,0.40528084]
[1743904173974,0.8898224,83442.0,83441.0,0.15528084]
[1743904174174,0.8581224,83442.0,83441.0,0.15528084]
[1743904174374,0.1365224,83442.0,83441.0,0.15528084]
[1743904174572,0.1365224,83442.0,83441.0,0.40528084]
[1743904174773,0.8898224,83442.0,83441.0,0.40528084]
[1743904174972,0.8898224,83442.0,83441.0,0.15528084]
[1743904175681,0.1682224,83442.0,83441.0,0.15528084]
[1743904175874,0.8898224,83442.0,83441.0,0.15528084]
[1743904176577,0.8898224,83442.0,83441.0,0.40528084]
[1743904178571,0.8898224,83442.0,83441.0,0.15528084]
[1743904178772,0.8898224,83442.0,83441.0,0.39528084]
[1743904179384,0.8898224,83442.0,83441.0,0.15528084]
[1743904179587,0.8898224,83442.0,83441.0,0.42528084]
[1743904183785,0.1682224,83442.0,83441.0,0.42528084]
[1743904184085,0.8898224,83442.0,83441.0,0.42528084]
[1743904184686,0.1682224,83442.0,83441.0,0.42528084]
[1743904185189,0.8898224,83442.0,83441.0,0.42528084]
[1743904185888,0.1682224,83442.0,83441.0,0.42528084]
[1743904186185,0.8898224,83442.0,83441.0,0.42528084]
[1743904186485,0.1682224,83442.0,83441.0,0.42528084]
[1743904186686,0.8898224,83442.0,83441.0,0.42528084]
[1743904188187,0.8898224,83442.0,83441.0,0.43528084]
[1743904192490,1.03339274,83442.0,83441.0,0.43528084]
[1743904193193,0.31179274,83442.0,83441.0,0.43528084]
[1743904193377,1.03339274,83442.0,83441.0,0.43528084]
[1743904194586,0.31179274,83442.0,83441.0,0.43528084]
[1743904194787,1.03339274,83442.0,83441.0,0.43528084]
[1743904200484,1.03339274,83442.0,83441.0,0.15528084]
[1743904200685,1.03339274,83442.0,83441.0,0.39528084]
[1743904200887,0.31179274,83442.0,83441.0,0.39528084]
[1743904201196,1.03339274,83442.0,83441.0,0.15528084]
[1743904201399,1.03339274,83442.0,83441.0,0.39528084]
[1743904201695,1.03339274,83442.0,83441.0,0.15528084]
[1743904201895,1.06629274,83442.0,83441.0,0.15528084]
[1743904202197,1.06629274,83442.0,83441.0,0.04095744]
[1743904202489,1.06629274,83442.0,83441.0,0.12488084]
[1743904202692,1.01513274,83442.0,83441.0,0.09278084]
[1743904202995,1.09869274,83442.0,83441.0,0.09278084]
[1743904203699,1.06629274,83442.0,83441.0,0.38558084]
[1743904204503,1.06629274,83442.0,83441.0,0.36558084]
[1743904204797,1.06629274,83442.0,83441.0,0.39748084]
[1743904205097,1.06629274,83442.0,83441.0,0.42748084]
[1743904205500,0.9227224,83442.0,83441.0,0.42748084]
[1743904207301,0.8898224,83442.0,83441.0,0.42748084]
[1743904208501,0.8898224,83442.0,83441.0,0.18748084]
[1743904208899,0.8898224,83442.0,83441.0,0.44748084]
[1743904211303,0.8898224,83442.0,83441.0,0.46413911]
[1743904212191,0.8386624,83442.0,83441.0,0.46413911]
[1743904212395,0.8898224,83442.0,83441.0,0.46413911]
[1743904212600,0.75474,83442.0,83441.0,0.46413911]
[1743904212804,0.36224,83442.0,83441.0,0.46413911]
[1743904213301,0.36224,83442.0,83441.0,0.46447745]
[1743904215108,0.36224,83442.0,83441.0,0.46449637]
[1743904219110,0.36224,83442.0,83441.0,0.46447316]
[1743904221409,0.36224,83442.0,83441.0,0.46446936]
[1743904222214,0.4461624,83442.0,83441.0,0.46446936]
[1743904222815,0.4461624,83442.0,83441.0,0.46448018]
[1743904227014,0.4461624,83442.0,83441.0,0.46446532]
[1743904227715,0.4461624,83442.0,83441.0,0.46446553]
[1743904228606,0.4461624,83442.0,83441.0,0.44748084]
[1743904228813,0.4461624,83442.0,83441.0,0.46448376]
[1743904230611,0.36224,83442.0,83441.0,0.46448376]
[1743904230817,0.4461624,83442.0,83441.0,0.46448376]
[1743904231218,0.36224,83442.0,83441.0,0.46448376]
[1743904234227,0.36224,83442.0,83441.0,0.46475032]
[1743904236014,0.36224,83442.0,83441.0,0.46479915]
[1743904236215,0.4461624,83442.0,83441.0,0.45479915]
[1743904237025,0.4765624,83442.0,83441.0,0.45479915]
[1743904237619,0.4765624,83442.0,83441.0,0.20479915]
[1743904237824,0.4765624,83442.0,83441.0,0.45479915]
[1743904241826,0.1157624,83442.0,83441.0,0.45479915]
[1743904243729,0.03184,83442.0,83441.0,0.45479915]
[1743904244027,0.0304,83442.0,83441.0,0.45479915]
[1743904245426,0.3608,83446.0,83445.0,0.0839194]
[1743904245631,0.3608,83446.0,83445.0,0.37123771]
[1743904246028,0.36220001,83446.0,83445.0,0.37123771]
[1743904246422,0.36220001,83446.0,83445.0,0.3878714]
[1743904246831,0.36220001,83446.0,83445.0,0.4187714]
[1743904247431,0.39540001,83446.0,83445.0,0.4187714]
[1743904248432,0.36220001,83446.0,83445.0,0.4187714]
[1743904249525,0.39380001,83446.0,83445.0,0.4187714]
[1743904249830,0.03300001,83446.0,83445.0,0.4187714]
[1743904253734,0.00140001,83446.0,83445.0,0.4187714]
[1743904256033,0.02400827,83447.0,83446.0,0.0839184]
[1743904256233,0.03,83450.0,83449.0,0.0839154]
[1743904256438,0.3908,83450.0,83449.0,0.37154506]
[1743904256728,0.3918,83450.0,83449.0,0.37154506]
[1743904256930,0.031,83450.0,83449.0,0.37154506]
[1743904257129,0.3918,83450.0,83449.0,0.37154506]
[1743904258542,0.031,83450.0,83449.0,0.37154506]
[1743904258842,0.032,83450.0,83449.0,0.37154506]
[1743904261852,0.3608,83470.0,83449.0,0.28762966]
[1743904262031,0.14357958,83459.0,83458.0,0.0839063]
[1743904262234,0.14357958,83459.0,83458.0,0.36153596]
[1743904262442,0.14357958,83459.0,83458.0,0.45863596]
[1743904262645,0.0317,83465.0,83458.0,0.39129303]
[1743904262836,0.0317,83465.0,83464.0,0.0839003]
[1743904263034,0.0317,83465.0,83464.0,0.36152996]
[1743904263546,0.0317,83465.0,83464.0,0.33152996]
[1743904263840,0.0317,83465.0,83464.0,0.40909333]
[1743904265039,0.03246,83465.0,83464.0,0.39320996]
[1743904265540,0.03746,83465.0,83464.0,0.39320996]
[1743904265739,0.04146,83465.0,83464.0,0.39320996]
[1743904268541,0.04146,83465.0,83464.0,0.39294446]
[1743904270236,0.00976,83465.0,83464.0,0.39294446]
[1743904271937,0.3608,83479.0,83478.0,0.0838862]
[1743904272140,0.39140001,83479.0,83478.0,0.32125036]
[1743904272347,0.39140001,83479.0,83478.0,0.10193036]
[1743904272940,0.39140001,83479.0,83478.0,0.16483036]
[1743904273344,0.39640001,83479.0,83478.0,0.16483036]
[1743904273851,0.40140001,83479.0,83478.0,0.16583036]
[1743904274246,0.04060001,83479.0,83478.0,0.16597494]
[1743904274451,0.03560001,83479.0,83478.0,0.16497494]
[1743904274655,0.04060001,83479.0,83478.0,0.16597494]
[1743904274847,0.04,83479.0,83478.0,0.16597494]
[1743904275051,0.04068,83479.0,83478.0,0.16597494]
[1743904275247,0.3658,83479.0,83478.0,0.39597494]
[1743904275546,0.37148,83479.0,83478.0,0.39597494]
[1743904275747,0.01068,83479.0,83478.0,0.39597494]
[1743904276147,0.01,83479.0,83478.0,0.39597494]
[1743904276343,0.01068,83479.0,83478.0,0.39597494]
[1743904277453,0.01,83479.0,83478.0,0.39597494]
[1743904277846,0.01,83479.0,83478.0,0.39600926]
[1743904278354,0.00017972,83487.0,83486.0,0.0838782]
[1743904278554,0.00089972,83487.0,83486.0,0.10210126]
[1743904279153,0.00089972,83487.0,83486.0,0.13280126]
[1743904279559,0.00589972,83487.0,83486.0,0.13380126]
[1743904279754,0.03599972,83487.0,83486.0,0.16570126]
[1743904281548,0.03099972,83487.0,83486.0,0.16463404]
[1743904281753,0.03899972,83487.0,83486.0,0.16463404]
[1743904282157,0.03899972,83487.0,83486.0,0.39463404]
[1743904282748,0.03899972,83487.0,83486.0,0.16463404]
[1743904282953,0.03899972,83487.0,83486.0,0.40463404]
[1743904283458,0.00889972,83487.0,83486.0,0.40469532]
[1743904283651,0.00889972,83487.0,83486.0,0.41384668]
[1743904286962,0.0323,83497.0,83496.0,0.0838682]
[1743904287155,0.36172,83498.0,83497.0,0.0838672]
[1743904287358,0.36264,83498.0,83497.0,0.33232432]
[1743904287664,0.00092,83498.0,83497.0,0.34887689]
[1743904287865,0.0323,83503.0,83502.0,0.0838621]
[1743904288061,0.0440931,83503.0,83502.0,0.72319922]
[1743904288263,0.04469311,83503.0,83502.0,0.36239922]
[1743904288560,0.04469311,83503.0,83502.0,0.37895179]
[1743904289263,0.05069311,83503.0,83502.0,0.37895179]
[1743904289456,0.05169311,83503.0,83502.0,0.37895179]
[1743904289961,0.05169311,83503.0,83502.0,0.11895179]
[1743904290160,0.08329311,83503.0,83502.0,0.11895179]
[1743904290367,0.08329311,83503.0,83502.0,0.10239922]
[1743904291265,0.07150001,83503.0,83502.0,0.10239922]
[1743904292669,0.07150001,83503.0,83502.0,0.10229146]
[1743904294866,0.06550001,83503.0,83502.0,0.10229146]
[1743904295868,0.0775217,83503.0,83502.0,0.10229146]
[1743904296269,0.0775217,83503.0,83502.0,0.10229077]
[1743904298069,0.1613828,83503.0,83502.0,0.10229077]
[1743904298266,0.1613828,83503.0,83502.0,0.10229027]
[1743904299274,0.1613828,83503.0,83502.0,0.13239027]
[1743904301168,0.1613828,83503.0,83502.0,0.13244401]
[1743904301366,0.1613828,83503.0,83502.0,0.16374401]
[1743904301872,0.1613828,83503.0,83502.0,0.16376046]
[1743904307374,0.1613828,83503.0,83502.0,0.19646046]
[1743904309380,0.1613828,83503.0,83502.0,0.19628948]
[1743904311279,0.1297828,83503.0,83502.0,0.19628948]
[1743904313088,0.1297828,83503.0,83502.0,0.19630686]
[1743904314895,0.1297828,83503.0,83502.0,0.19632606]
[1743904317793,0.1287828,83503.0,83502.0,0.19632606]
[1743904318196,0.1287828,83503.0,83502.0,0.19732606]
[1743904318698,0.1287828,83503.0,83502.0,0.19632606]
[1743904318893,0.1287828,83503.0,83502.0,0.19732606]
[1743904319199,0.1287828,83503.0,83502.0,0.19632606]
[1743904319392,0.1287828,83503.0,83502.0,0.19732606]
[1743904321293,0.1287828,83503.0,83502.0,0.19832606]
[1743904322200,0.1287828,83503.0,83502.0,0.19732606]
[1743904322804,0.1287828,83503.0,83502.0,0.01836396]
[1743904322999,0.0838662,83498.0,83497.0,8e-05]
[1743904323196,0.4446662,83498.0,83497.0,8e-05]
[1743904323503,0.0838692,83495.0,83494.0,0.0838698]
[1743904323697,0.1349892,83495.0,83494.0,0.0838698]
[1743904323893,0.1349892,83495.0,83494.0,0.10043346]
[1743904324291,0.1675892,83495.0,83494.0,0.10043346]
[1743904324703,0.1164692,83495.0,83494.0,0.10043346]
[1743904324892,0.1675892,83495.0,83494.0,0.10043346]
[1743904325093,0.16818921,83495.0,83494.0,0.10103346]
[1743904325294,0.16918921,83495.0,83494.0,0.13393346]
[1743904326004,0.17018921,83495.0,83494.0,0.13393346]
[1743904326907,0.17118921,83495.0,83494.0,0.13393346]
[1743904327706,0.17118921,83495.0,83494.0,0.19713346]
[1743904328496,0.16918921,83495.0,83494.0,0.19713346]
[1743904328700,0.17018921,83495.0,83494.0,0.19713346]
[1743904330010,0.17018921,83495.0,83494.0,0.16533346]
[1743904330508,0.0838732,83491.0,83490.0,8e-05]
[1743904330812,0.0838732,83491.0,83476.0,0.0635]
[1743904330813,0.0838742,83490.0,83476.0,0.0635]
[1743904331007,0.0838913,83473.0,83472.0,0.0313]
[1743904331215,0.1350113,83473.0,83472.0,0.00068]
[1743904331510,0.1359313,83473.0,83472.0,0.00068]
[1743904331908,0.2022313,83473.0,83472.0,0.00068]
[1743904332306,0.2022313,83473.0,83472.0,0.00961004]
[1743904332509,0.0838963,83468.0,83467.0,0.43062691]
[1743904332706,0.0850563,83468.0,83467.0,0.43126691]
[1743904332909,0.09697003,83468.0,83467.0,0.43126691]
[1743904333106,0.16327003,83468.0,83467.0,0.43126691]
[1743904334414,0.16327003,83468.0,83467.0,0.00064]
[1743904334616,0.0838993,83465.0,83464.0,0.00025972]
[1743904334809,0.08501931,83465.0,83464.0,0.01818137]
[1743904335010,0.08501931,83465.0,83464.0,0.04998137]
[1743904335410,0.08501931,83465.0,83464.0,0.0499717]
[1743904336608,0.08501931,83465.0,83464.0,0.0509717]
[1743904336919,0.08501931,83465.0,83464.0,0.0519717]
[1743904337112,0.08501931,83465.0,83464.0,0.0513717]
[1743904337312,0.08501931,83465.0,83464.0,0.0195717]
[1743904338220,0.08501931,83465.0,83464.0,0.01945624]
[1743904338419,0.44581931,83465.0,83464.0,0.01945624]
[1743904339019,0.44581931,83465.0,83464.0,0.02855876]
[1743904343314,0.0839053,83459.0,83458.0,8e-05]
[1743904343513,0.1361853,83459.0,83458.0,0.01703156]
[1743904344215,0.1972853,83459.0,83458.0,0.01703156]
[1743904344423,0.1982853,83459.0,83458.0,0.01703156]
[1743904345115,0.1982853,83459.0,83458.0,0.02623216]
[1743904345322,0.1982853,83459.0,83458.0,0.05733216]
[1743904345724,0.1689853,83459.0,83458.0,0.05733216]
[1743904346320,0.1178653,83459.0,83458.0,0.14123846]
[1743904346520,0.1689853,83459.0,83458.0,0.14123846]
[1743904346722,0.1689853,83459.0,83458.0,0.17143846]
[1743904346923,0.1381853,83459.0,83458.0,0.17143846]
[1743904347320,0.1381853,83459.0,83458.0,0.43143846]
[1743904348231,0.0870653,83459.0,83458.0,0.17143846]
[1743904348526,0.1381853,83459.0,83458.0,0.17143846]
[1743904349427,0.1381853,83459.0,83458.0,0.1544069]
[1743904349629,0.1381853,83459.0,83458.0,0.45088228]
[1743904349834,0.1381853,83459.0,83458.0,0.17088228]
[1743904352629,0.0870653,83459.0,83458.0,0.17088228]
[1743904352821,0.1381853,83459.0,83458.0,0.17088228]
[1743904354629,0.0870653,83459.0,83458.0,0.17088228]
[1743904354929,0.1381853,83459.0,83458.0,0.17088228]
[1743904355423,0.1381853,83459.0,83458.0,0.18804902]